[Event "FIDE Women's Grand Swiss 2023"]
[Site "Villa Marina, Douglas, Isle of Man, Isle Of Man"]
[Date "2023.10.28"]
[Round "4.24"]
[White "Vantika, Agrawal"]
[Black "Gomez Barrera, Javiera Belen"]
[Result "1-0"]
[TimeControl "40/90 + 30 + 30s/move"]
[WhiteFideId "25050389"]
[BlackFideId "3418723"]
[WhiteElo "2435"]
[BlackElo "2266"]

1. d4 {[%clk 01:30:57]} {[%emt 00:00:02]} d5 {[%clk 01:30:55]} {[%emt
00:00:05]} 2. c4 {[%clk 01:31:21]} {[%emt 00:00:07]} e6 {[%clk 01:31:20]}
{[%emt 00:00:05]} 3. Nf3 {[%clk 01:31:20]} {[%emt 00:00:31]} Nf6 {[%clk
01:31:43]} {[%emt 00:00:06]} 4. g3 {[%clk 01:31:46]} {[%emt 00:00:04]} Be7
{[%clk 01:32:07]} {[%emt 00:00:06]} 5. Bg2 {[%clk 01:32:11]} {[%emt 00:00:05]}
c6 {[%clk 01:32:35]} {[%emt 00:00:03]} 6. Qc2 {[%clk 01:31:59]} {[%emt
00:00:41]} O-O {[%clk 01:32:58]} {[%emt 00:00:08]} 7. O-O {[%clk 01:32:24]}
{[%emt 00:00:06]} b6 {[%clk 01:33:00]} {[%emt 00:00:27]} 8. Rd1 {[%clk
01:31:34]} {[%emt 00:01:20]} Nbd7 {[%clk 01:32:47]} {[%emt 00:00:43]} 9. b3
{[%clk 01:31:15]} {[%emt 00:00:49]} Ba6 {[%clk 01:32:44]} {[%emt 00:00:33]} 10.
Nbd2 {[%clk 01:31:05]} {[%emt 00:00:40]} c5 {[%clk 01:32:40]} {[%emt 00:00:34]}
11. e4 {[%clk 01:26:36]} {[%emt 00:05:00]} dxc4 {[%clk 01:32:46]} {[%emt
00:00:23]} 12. bxc4 {[%clk 00:59:56]} {[%emt 00:27:10]} cxd4 {[%clk 01:31:56]}
{[%emt 00:01:20]} 13. e5 {[%clk 00:57:54]} {[%emt 00:02:33]} Ng4 {[%clk
01:15:56]} {[%emt 00:16:29]} 14. Qe4 {[%clk 00:50:45]} {[%emt 00:07:39]} h5
{[%clk 01:15:55]} {[%emt 00:00:31]} 15. h3 {[%clk 00:44:52]} {[%emt 00:06:23]}
Nc5 {[%clk 01:13:34]} {[%emt 00:02:51]} 16. Qc2 {[%clk 00:37:29]} {[%emt
00:07:52]} d3 {[%clk 01:10:40]} {[%emt 00:03:25]} 17. Qb1 {[%clk 00:37:17]}
{[%emt 00:00:42]} Nh6 {[%clk 01:09:44]} {[%emt 00:01:26]} 18. Nb3 {[%clk
00:36:51]} {[%emt 00:00:56]} Nf5 {[%clk 00:59:00]} {[%emt 00:11:13]} 19. g4
{[%clk 00:33:25]} {[%emt 00:03:56]} Nh4 {[%clk 00:56:53]} {[%emt 00:02:38]} 20.
Nxh4 {[%clk 00:30:39]} {[%emt 00:03:16]} Bxh4 {[%clk 00:57:21]} {[%emt
00:00:02]} 21. Nxc5 {[%clk 00:30:41]} {[%emt 00:00:28]} bxc5 {[%clk 00:57:36]}
{[%emt 00:00:15]} 22. Rxd3 {[%clk 00:28:57]} {[%emt 00:02:13]} Qc7 {[%clk
00:55:57]} {[%emt 00:02:10]} 23. Bxa8 {[%clk 00:22:43]} {[%emt 00:06:44]} Rxa8
{[%clk 00:56:25]} {[%emt 00:00:02]} 24. Rd6 {[%clk 00:22:52]} {[%emt 00:00:21]}
Bxc4 {[%clk 00:53:17]} {[%emt 00:03:38]} 25. g5 {[%clk 00:21:08]} {[%emt
00:02:13]} Bd5 {[%clk 00:51:46]} {[%emt 00:02:02]} 26. Qd3 {[%clk 00:17:40]}
{[%emt 00:03:58]} Rb8 {[%clk 00:47:28]} {[%emt 00:04:48]} 27. Rb1 {[%clk
00:09:12]} {[%emt 00:08:58]} c4 {[%clk 00:40:01]} {[%emt 00:07:56]} 28. Qc2
{[%clk 00:09:11]} {[%emt 00:00:32]} g6 {[%clk 00:37:04]} {[%emt 00:03:28]} 29.
Rxb8+ {[%clk 00:05:41]} {[%emt 00:04:00]} Qxb8 {[%clk 00:37:32]} {[%emt
00:00:01]} 30. Qd2 {[%clk 00:05:09]} {[%emt 00:01:02]} Qc7 {[%clk 00:21:22]}
{[%emt 00:16:40]} 31. Qf4 {[%clk 00:04:04]} {[%emt 00:01:35]} Qa5 {[%clk
00:21:51]} {[%emt 00:00:02]} 32. Bd2 {[%clk 00:03:46]} {[%emt 00:00:47]} c3
{[%clk 00:22:20]} {[%emt 00:00:01]} 33. Rd7 {[%clk 00:00:42]} {[%emt 00:03:34]}
f5 {[%clk 00:22:25]} {[%emt 00:00:24]} 34. gxf6 {[%clk 00:00:45]} {[%emt
00:00:28]} g5 {[%clk 00:20:48]} {[%emt 00:02:07]} 35. f7+ {[%clk 00:00:35]}
{[%emt 00:00:40]} Kf8 {[%clk 00:21:17]} {[%emt 00:00:01]} 36. Bxc3 {[%clk
00:00:33]} {[%emt 00:00:30]} gxf4 {[%clk 00:19:53]} {[%emt 00:01:55]} 37. Bxa5
{[%clk 00:01:00]} {[%emt 00:00:03]} Be7 {[%clk 00:20:18]} {[%emt 00:00:05]} 38.
Rxa7 {[%clk 00:01:01]} {[%emt 00:00:30]} Bxa2 {[%clk 00:20:03]} {[%emt
00:00:46]} 39. Bc7 {[%clk 00:01:11]} {[%emt 00:00:19]} Bd5 {[%clk 00:18:47]}
{[%emt 00:01:45]} 40. Bd6 {[%clk 00:01:37]} {[%emt 00:00:04]} 1-0

[Event "FIDE Women's Grand Swiss 2023"]
[Site "Villa Marina, Douglas, Isle of Man, Isle Of Man"]
[Date "2023.10.28"]
[Round "4.25"]
[White "Kanyamarala, Trisha"]
[Black "Nassr, Lina"]
[Result "1/2-1/2"]
[TimeControl "40/90 + 30 + 30s/move"]
[WhiteFideId "45004722"]
[BlackFideId "7908075"]
[WhiteElo "2184"]
[BlackElo "2066"]

1. d4 {[%clk 01:30:53]} {[%emt 00:00:06]} Nf6 {[%clk 01:30:37]} {[%emt
00:00:23]} 2. c4 {[%clk 01:31:13]} {[%emt 00:00:10]} e6 {[%clk 01:30:43]}
{[%emt 00:00:24]} 3. Nf3 {[%clk 01:31:33]} {[%emt 00:00:10]} d5 {[%clk
01:30:56]} {[%emt 00:00:18]} 4. Nc3 {[%clk 01:31:38]} {[%emt 00:00:24]} Be7
{[%clk 01:30:18]} {[%emt 00:01:08]} 5. Bf4 {[%clk 01:31:42]} {[%emt 00:00:26]}
O-O {[%clk 01:29:01]} {[%emt 00:01:48]} 6. e3 {[%clk 01:31:54]} {[%emt
00:00:18]} b6 {[%clk 01:28:18]} {[%emt 00:01:13]} 7. Bd3 {[%clk 01:31:47]}
{[%emt 00:00:36]} dxc4 {[%clk 01:27:28]} {[%emt 00:01:21]} 8. Bxc4 {[%clk
01:32:11]} {[%emt 00:00:06]} Bb7 {[%clk 01:27:00]} {[%emt 00:00:58]} 9. Qe2
{[%clk 01:23:40]} {[%emt 00:09:00]} a6 {[%clk 01:22:07]} {[%emt 00:05:24]} 10.
O-O {[%clk 01:21:01]} {[%emt 00:03:09]} b5 {[%clk 01:21:23]} {[%emt 00:01:15]}
11. Bd3 {[%clk 01:16:54]} {[%emt 00:04:36]} Nbd7 {[%clk 01:19:12]} {[%emt
00:02:41]} 12. Rfd1 {[%clk 01:15:54]} {[%emt 00:01:29]} c5 {[%clk 01:15:17]}
{[%emt 00:04:25]} 13. dxc5 {[%clk 01:11:19]} {[%emt 00:05:05]} Bxc5 {[%clk
01:12:50]} {[%emt 00:02:58]} 14. Ne5 {[%clk 01:08:53]} {[%emt 00:02:56]} Qe7
{[%clk 01:02:37]} {[%emt 00:10:43]} 15. Nxd7 {[%clk 01:05:12]} {[%emt
00:04:10]} Nxd7 {[%clk 01:02:53]} {[%emt 00:00:14]} 16. Bxh7+ {[%clk 01:01:13]}
{[%emt 00:04:30]} Kxh7 {[%clk 00:56:25]} {[%emt 00:06:58]} 17. Qd3+ {[%clk
01:00:10]} {[%emt 00:01:32]} Kg8 {[%clk 00:55:34]} {[%emt 00:01:21]} 18. Qxd7
{[%clk 01:00:26]} {[%emt 00:00:14]} Qxd7 {[%clk 00:50:24]} {[%emt 00:05:40]} 19.
Rxd7 {[%clk 01:00:50]} {[%emt 00:00:06]} Bc6 {[%clk 00:47:45]} {[%emt
00:03:10]} 20. Rdd1 {[%clk 01:00:04]} {[%emt 00:01:15]} Rfd8 {[%clk 00:40:26]}
{[%emt 00:07:50]} 21. h3 {[%clk 00:55:19]} {[%emt 00:05:14]} Rac8 {[%clk
00:36:55]} {[%emt 00:04:01]} 22. Rac1 {[%clk 00:53:11]} {[%emt 00:02:38]} Be7
{[%clk 00:32:51]} {[%emt 00:04:35]} 23. Rxd8+ {[%clk 00:42:06]} {[%emt
00:11:35]} Rxd8 {[%clk 00:30:51]} {[%emt 00:02:29]} 24. Ne2 {[%clk 00:31:45]}
{[%emt 00:10:52]} Be4 {[%clk 00:25:45]} {[%emt 00:05:36]} 25. Ng3 {[%clk
00:26:10]} {[%emt 00:06:05]} Bd5 {[%clk 00:22:13]} {[%emt 00:04:02]} 26. b3
{[%clk 00:24:03]} {[%emt 00:02:36]} Bh4 {[%clk 00:16:32]} {[%emt 00:06:12]} 27.
Nf1 {[%clk 00:19:59]} {[%emt 00:04:33]} Be4 {[%clk 00:13:44]} {[%emt 00:03:19]}
28. f3 {[%clk 00:18:39]} {[%emt 00:01:50]} Bd3 {[%clk 00:12:11]} {[%emt
00:02:03]} 29. e4 {[%clk 00:16:13]} {[%emt 00:02:56]} Be7 {[%clk 00:10:46]}
{[%emt 00:01:54]} 30. Kf2 {[%clk 00:11:49]} {[%emt 00:04:54]} a5 {[%clk
00:07:11]} {[%emt 00:04:07]} 31. Ng3 {[%clk 00:06:03]} {[%emt 00:06:15]} a4
{[%clk 00:05:19]} {[%emt 00:02:22]} 32. bxa4 {[%clk 00:04:37]} {[%emt
00:01:56]} bxa4 {[%clk 00:05:44]} {[%emt 00:00:05]} 33. Ne2 {[%clk 00:04:12]}
{[%emt 00:00:55]} g5 {[%clk 00:04:21]} {[%emt 00:01:52]} 34. Be5 {[%clk
00:02:55]} {[%emt 00:01:47]} f6 {[%clk 00:04:02]} {[%emt 00:00:50]} 35. Ba1
{[%clk 00:03:07]} {[%emt 00:00:18]} Kf7 {[%clk 00:03:15]} {[%emt 00:01:18]} 36.
Nd4 {[%clk 00:03:05]} {[%emt 00:00:31]} Bd6 {[%clk 00:01:36]} {[%emt 00:02:09]}
37. g3 {[%clk 00:02:07]} {[%emt 00:01:28]} Rd7 {[%clk 00:01:05]} {[%emt
00:01:01]} 38. Nc6 {[%clk 00:00:45]} {[%emt 00:01:53]} Bb5 {[%clk 00:00:55]}
{[%emt 00:00:39]} 39. Nd4 {[%clk 00:00:53]} {[%emt 00:00:22]} Ba6 {[%emt
00:01:19]} 40. Nc6 {[%clk 00:00:38]} Bc7 {[%clk 00:00:41]} {[%emt 00:00:39]} 41.
Bc3 {[%clk 00:24:59]} {[%emt 00:06:09]} Bb6+ {[%clk 00:20:55]} {[%emt
00:10:16]} 42. Kg2 {[%clk 00:21:56]} {[%emt 00:03:33]} Rc7 {[%clk 00:15:27]}
{[%emt 00:05:59]} 43. Bd4 {[%clk 00:12:11]} {[%emt 00:10:15]} Rb7 {[%clk
00:08:09]} {[%emt 00:07:48]} 44. Bc5 {[%clk 00:09:20]} {[%emt 00:03:21]} Ke8
{[%clk 00:02:23]} {[%emt 00:06:15]} 45. Ba3 {[%clk 00:08:02]} {[%emt 00:01:49]}
Rc7 {[%clk 00:01:23]} {[%emt 00:01:30]} 46. Nb4 {[%clk 00:06:35]} {[%emt
00:01:56]} Rxc1 {[%clk 00:01:24]} {[%emt 00:00:29]} 47. Bxc1 {[%clk 00:07:01]}
{[%emt 00:00:04]} Bc4 {[%clk 00:01:49]} {[%emt 00:00:05]} 48. a3 {[%clk
00:07:03]} {[%emt 00:00:29]} Kf7 {[%clk 00:00:49]} {[%emt 00:01:31]} 49. Nc2
{[%clk 00:06:58]} {[%emt 00:00:35]} Bb3 {[%clk 00:00:47]} {[%emt 00:00:32]} 50.
Nb4 {[%clk 00:04:28]} {[%emt 00:03:00]} Bc4 {[%clk 00:00:53]} {[%emt 00:00:24]}
51. Nc2 {[%clk 00:02:42]} {[%emt 00:02:16]} Bb3 {[%clk 00:01:16]} {[%emt
00:00:07]} 52. Ne3 {[%clk 00:02:38]} {[%emt 00:00:34]} Bxe3 {[%clk 00:01:00]}
{[%emt 00:00:46]} 53. Bxe3 {[%clk 00:03:07]} {[%emt 00:00:01]} Kg6 {[%clk
00:01:10]} {[%emt 00:00:20]} 54. h4 {[%clk 00:02:36]} {[%emt 00:01:01]} gxh4
{[%clk 00:01:28]} {[%emt 00:00:12]} 55. gxh4 {[%clk 00:03:01]} {[%emt
00:00:05]} f5 {[%clk 00:01:41]} {[%emt 00:00:17]} 56. Kg3 {[%clk 00:02:26]}
{[%emt 00:01:05]} fxe4 {[%clk 00:01:54]} {[%emt 00:00:16]} 57. fxe4 {[%clk
00:02:48]} {[%emt 00:00:08]} Kh5 {[%clk 00:02:17]} {[%emt 00:00:07]} 58. Bg5
{[%clk 00:02:58]} {[%emt 00:00:21]} Bc4 {[%clk 00:02:32]} {[%emt 00:00:15]} 59.
Kf4 {[%clk 00:03:09]} {[%emt 00:00:18]} Bb3 {[%clk 00:02:46]} {[%emt 00:00:16]}
60. Ke5 {[%clk 00:03:28]} {[%emt 00:00:11]} Bc4 {[%clk 00:03:06]} {[%emt
00:00:10]} 61. Kd4 {[%clk 00:03:20]} {[%emt 00:00:39]} Bb3 {[%clk 00:03:28]}
{[%emt 00:00:08]} 62. Be7 {[%clk 00:03:40]} {[%emt 00:00:09]} Kg4 {[%clk
00:03:44]} {[%emt 00:00:14]} 63. Bd8 {[%clk 00:03:56]} {[%emt 00:00:15]} Kh5
{[%clk 00:04:08]} {[%emt 00:00:06]} 64. Kc5 {[%clk 00:03:51]} {[%emt 00:00:35]}
Kg4 {[%clk 00:04:31]} {[%emt 00:00:06]} 65. Kd6 {[%clk 00:04:10]} {[%emt
00:00:12]} Kh5 {[%clk 00:04:53]} {[%emt 00:00:07]} 66. Ke5 {[%clk 00:04:30]}
{[%emt 00:00:11]} Bc4 {[%clk 00:05:07]} {[%emt 00:00:16]} 67. Kf4 {[%clk
00:04:04]} {[%emt 00:00:55]} Bb3 {[%clk 00:05:31]} {[%emt 00:00:06]} 68. e5
{[%clk 00:04:16]} {[%emt 00:00:18]} Bd5 {[%clk 00:05:54]} {[%emt 00:00:07]} 69.
Bf6 {[%clk 00:04:28]} {[%emt 00:00:19]} Bb3 {[%clk 00:06:16]} {[%emt 00:00:07]}
70. Ke4 {[%clk 00:04:47]} {[%emt 00:00:11]} Bd5+ {[%clk 00:06:40]} {[%emt
00:00:06]} 71. Kd4 {[%clk 00:05:13]} {[%emt 00:00:05]} Bb3 {[%clk 00:07:00]}
{[%emt 00:00:10]} 72. Kc5 {[%clk 00:05:34]} {[%emt 00:00:09]} Kg6 {[%clk
00:07:19]} {[%emt 00:00:10]} 1/2-1/2